[Event "29th Czech Open-Rapid 2018"]
[Site "Pardubice"]
[Date "2018.07.19"]
[Round "5"]
[White "Bystrov, Sergej Mikhailovich"]
[Black "Haase, Pavel"]
[Result "1-0"]
[ECO "E21"]
[WhiteElo "2121"]
[BlackElo "1975"]
[Annotator "NA"]
[PlyCount "139"]
[EventDate "2018.07.18"]
[EventType "swiss"]
[EventCountry "CZE"]
[SourceTitle "playchess.com"]
[Source "ChessBase"]
[SourceQuality "1"]
[TimeControl "900+10"]

1. d4 {[%emt 0:00:00]} Nf6 {[%emt 0:00:00]} 2. Nf3 {[%emt 0:00:00]} e6 {[%emt 0:00:00]} 3. c4 {[%emt 0:00:01]} b6 {[%emt 0:00:02]} 4. Nc3 {[%emt 0:00:02]} Bb7 {[%emt 0:00:02]} 5. a3 {[%emt 0:00:02]} d5 {[%emt 0:00:19]} 6. cxd5 {[%emt 0:00:29]} Nxd5 {[%emt 0:00:07]} 7. Qc2 {[%emt 0:00:11]} c5 {[%emt 0:00:15]} 8. e4 {[%emt 0:00:11]} Nxc3 {[%emt 0:01:14]} 9. bxc3 {[%emt 0:00:03]} Be7 {[%emt 0:00:13]} 10. Bd3 {[%emt 0:00:16]} O-O {[%emt 0:00:04]} 11. O-O {[%emt 0:00:03]} cxd4 {[%emt 0:00:23]} 12. cxd4 {[%emt 0:00:05]} Nc6 {[%emt 0:00:06]} 13. Bb2 {[%emt 0:00:16]} Rc8 {[%emt 0:00:03]} 14. Qe2 {[%emt 0:01:26]} Bf6 {[%emt 0:00:12]} 15. e5 {[%emt 0:02:47]} Be7 {[%emt 0:00:07]} 16. Rfd1 {[%emt 0:00:32]} Na5 {[%emt 0:00:20]} 17. Rac1 {[%emt 0:01:09]} Qd5 {[%emt 0:01:24]} 18. Rxc8 {[%emt 0:02:45]} Rxc8 {[%emt 0:00:02]} 19. Rc1 {[%emt 0:00:00]} Rxc1+ {[%emt 0:00:36]} 20. Bxc1 {[%emt 0:00:02]} h6 {[%emt 0:00:19]} 21. Qc2 {[%emt 0:01:25]} Bc6 {[%emt 0:03:53]} 22. h3 {[%emt 0:01:32]} b5 {[%emt 0:01:20]} 23. Qc3 {[%emt 0:00:59]} Nc4 {[%emt 0:00:47]} 24. a4 {[%emt 0:00:22]} a6 {[%emt 0:00:10]} 25. axb5 {[%emt 0:00:34]} axb5 {[%emt 0:00:02]} 26. Ne1 {[%emt 0:00:25]} Nb6 {[%emt 0:00:29]} 27. Bf1 {[%emt 0:02:01]} b4 {[%emt 0:00:26]} 28. Qd3 {[%emt 0:00:17]} Qa5 {[%emt 0:02:19]} 29. Qc2 {[%emt 0:01:03]} Qa8 {[%emt 0:00:48]} 30. Nd3 {[%emt 0:00:12]} Nd5 {[%emt 0:00:11]} 31. Bd2 {[%emt 0:00:12]} Ba4 {[%emt 0:00:14]} 32. Qb2 {[%emt 0:00:19]} Qb7 {[%emt 0:00:46]} 33. Nf4 {[%emt 0:00:13]} Nxf4 {[%emt 0:00:28]} 34. Bxf4 {[%emt 0:00:00]} Qc6 {[%emt 0:00:31]} 35. Qc1 {[%emt 0:00:14]} b3 {[%emt 0:00:36]} 36. Qxc6 {[%emt 0:00:27]} Bxc6 {[%emt 0:00:01]} 37. Bc1 {[%emt 0:00:01]} Bd5 {[%emt 0:00:07]} 38. Bd3 {[%emt 0:00:04]} Bb4 {[%emt 0:00:23]} 39. Bb2 {[%emt 0:00:00]} Kf8 {[%emt 0:00:17]} 40. Kf1 {[%emt 0:00:02]} Ke7 {[%emt 0:00:10]} 41. f3 {[%emt 0:00:07]} Kd7 {[%emt 0:00:07]} 42. Ke2 {[%emt 0:00:24]} Kc6 {[%emt 0:00:03]} 43. Be4 {[%emt 0:00:36]} f5 {[%emt 0:00:55]} 44. exf6 {[%emt 0:00:05]} gxf6 {[%emt 0:00:02]} 45. g4 {[%emt 0:00:01]} Kd6 {[%emt 0:00:25]} 46. Kd3 {[%emt 0:00:07]} f5 {[%emt 0:00:30]} 47. gxf5 {[%emt 0:00:13]} exf5 {[%emt 0:00:02]} 48. Bxf5 {[%emt 0:00:04]} Bxf3 {[%emt 0:00:03]} 49. Be4 {[%emt 0:00:26]} Bh5 {[%emt 0:00:59]} 50. Kc4 {[%emt 0:00:06]} Be1 {[%emt 0:00:12]} 51. Kxb3 {[%emt 0:00:04]} Bf7+ {[%emt 0:00:03]} 52. Kc2 {[%emt 0:00:07]} Bd5 {[%emt 0:00:12]} 53. Kd3 {[%emt 0:00:03]} Ke6 {[%emt 0:00:14]} 54. Bc1 {[%emt 0:00:17]} h5 {[%emt 0:00:04]} 55. Bg5 {[%emt 0:00:03]} Bg3 {[%emt 0:00:18]} 56. Ke3 {[%emt 0:00:23]} Kd6 {[%emt 0:00:11]} 57. Bf4+ {[%emt 0:00:07]} Bxf4+ {[%emt 0:00:11]} 58. Kxf4 {[%emt 0:00:01]} Be6 {[%emt 0:00:09]} 59. h4 {[%emt 0:00:02]} Bg4 {[%emt 0:00:03]} 60. Kg5 {[%emt 0:00:05]} Be2 {[%emt 0:00:08]} 61. Kf4 {[%emt 0:00:09]} Bc4 {[%emt 0:00:17]} 62. Bf3 {[%emt 0:00:12]} Bf7 {[%emt 0:00:01]} 63. Kg5 {[%emt 0:00:01]} Bg8 {[%emt 0:00:23]} 64. Kxh5 {[%emt 0:00:03]} Ke6 {[%emt 0:00:10]} 65. Kg6 {[%emt 0:00:23]} Bf7+ {[%emt 0:00:06]} 66. Kg5 {[%emt 0:00:08]} Bg8 {[%emt 0:00:08]} 67. Be4 {[%emt 0:00:04]} Bf7 {[%emt 0:00:15]} 68. h5 {[%emt 0:00:02]} Be8 {[%emt 0:00:11]} 69. h6 {[%emt 0:00:09]} Kf7 {[%emt 0:00:05]} 70. Bg6+ {[%emt 0:00:07]} 1-0

[Event "29th Czech Open-Rapid 2018"]
[Site "Pardubice"]
[Date "2018.07.19"]
[Round "5"]
[White "Roenko, Artur"]
[Black "Chubar, Vladimir"]
[Result "1-0"]
[ECO "C10"]
[WhiteElo "2119"]
[BlackElo "1903"]
[Annotator "NA"]
[PlyCount "61"]
[EventDate "2018.07.18"]
[EventType "swiss"]
[EventCountry "CZE"]
[SourceTitle "playchess.com"]
[Source "ChessBase"]
[SourceQuality "1"]
[TimeControl "900+10"]

1. e4 {[%emt 0:00:00]} e6 {[%emt 0:00:00]} 2. d4 {[%emt 0:00:00]} d5 {[%emt 0:00:00]} 3. Nd2 {[%emt 0:00:00]} dxe4 {[%emt 0:00:01]} 4. Nxe4 {[%emt 0:00:00]} Bd7 {[%emt 0:00:02]} 5. Nf3 {[%emt 0:00:07]} Bc6 {[%emt 0:00:03]} 6. Bd3 {[%emt 0:00:26]} Nd7 {[%emt 0:00:07]} 7. O-O {[%emt 0:00:20]} Be7 {[%emt 0:00:10]} 8. c4 {[%emt 0:00:10]} Ngf6 {[%emt 0:00:12]} 9. Ng3 {[%emt 0:00:07]} Bxf3 {[%emt 0:00:17]} 10. Qxf3 {[%emt 0:00:03]} c6 {[%emt 0:00:10]} 11. Re1 {[%emt 0:00:26]} O-O {[%emt 0:00:08]} 12. b3 {[%emt 0:00:18]} a5 {[%emt 0:00:17]} 13. Bb2 {[%emt 0:00:18]} a4 {[%emt 0:00:16]} 14. Bc2 {[%emt 0:00:34]} Re8 {[%emt 0:00:40]} 15. Qd3 {[%emt 0:01:56]} axb3 {[%emt 0:00:56]} 16. axb3 {[%emt 0:00:06]} Nf8 {[%emt 0:00:22]} 17. Rxa8 {[%emt 0:00:46]} Qxa8 {[%emt 0:00:03]} 18. Ra1 {[%emt 0:00:02]} Qb8 {[%emt 0:00:55]} 19. Qf3 {[%emt 0:01:12]} Rd8 {[%emt 0:01:17]} 20. h4 {[%emt 0:00:55]} Qc7 {[%emt 0:02:28]} 21. Bc3 {[%emt 0:00:19]} Rb8 {[%emt 0:01:07]} 22. Bd2 {[%emt 0:01:25]} b5 {[%emt 0:00:50]} 23. c5 {[%emt 0:00:17]} Nd5 {[%emt 0:00:54]} 24. Be4 {[%emt 0:00:41]} Rd8 {[%emt 0:00:26]} 25. Ra6 {[%emt 0:00:58]} Bxh4 {[%emt 0:00:34]} 26. Ba5 {[%emt 0:00:36]} Qc8 {[%emt 0:01:23]} 27. Bxd8 {[%emt 0:00:02]} Bxg3 {[%emt 0:00:20]} 28. Ra2 {[%emt 0:00:53]} Bxf2+ {[%emt 0:00:34]} 29. Rxf2 {[%emt 0:00:03]} f5 {[%emt 0:00:18]} 30. Bxd5 {[%emt 0:00:02]} Qxd8 {[%emt 0:00:17]} 31. Qxf5 {[%emt 0:00:30]} 1-0

[Event "29th Czech Open-Rapid 2018"]
[Site "Pardubice"]
[Date "2018.07.19"]
[Round "5"]
[White "Slovak, Kilian"]
[Black "Dolezal, Radoslav"]
[Result "0-1"]
[ECO "C88"]
[WhiteElo "2113"]
[BlackElo "2339"]
[Annotator "NA"]
[PlyCount "110"]
[EventDate "2018.07.18"]
[EventType "swiss"]
[EventCountry "CZE"]
[SourceTitle "playchess.com"]
[Source "ChessBase"]
[SourceQuality "1"]
[TimeControl "900+10"]

1. e4 {[%emt 0:00:00]} e5 {[%emt 0:00:00]} 2. Nf3 {[%emt 0:00:00]} Nc6 {[%emt 0:00:00]} 3. Bb5 {[%emt 0:00:00]} a6 {[%emt 0:00:00]} 4. Ba4 {[%emt 0:00:00]} Nf6 {[%emt 0:00:01]} 5. O-O {[%emt 0:00:02]} Be7 {[%emt 0:00:02]} 6. Re1 {[%emt 0:00:03]} b5 {[%emt 0:00:01]} 7. Bb3 {[%emt 0:00:00]} O-O {[%emt 0:00:01]} 8. h3 {[%emt 0:00:07]} Bb7 {[%emt 0:00:02]} 9. d3 {[%emt 0:00:09]} d6 {[%emt 0:00:02]} 10. c3 {[%emt 0:00:34]} Na5 {[%emt 0:00:02]} 11. Bc2 {[%emt 0:00:02]} c5 {[%emt 0:00:01]} 12. d4 {[%emt 0:00:21]} Nc6 {[%emt 0:00:18]} 13. d5 {[%emt 0:00:07]} Nb8 {[%emt 0:00:01]} 14. Nbd2 {[%emt 0:00:27]} c4 {[%emt 0:00:06]} 15. Nf1 {[%emt 0:01:28]} Nbd7 {[%emt 0:00:03]} 16. Ng3 {[%emt 0:00:36]} g6 {[%emt 0:00:04]} 17. Bh6 {[%emt 0:04:27]} Re8 {[%emt 0:00:07]} 18. Qd2 {[%emt 0:00:01]} Nf8 {[%emt 0:02:35]} 19. Kh2 {[%emt 0:01:04]} N6d7 {[%emt 0:00:32]} 20. Nf1 {[%emt 0:00:59]} Nc5 {[%emt 0:00:13]} 21. g4 {[%emt 0:00:13]} Qc7 {[%emt 0:03:17]} 22. Ng3 {[%emt 0:00:06]} Reb8 {[%emt 0:00:07]} 23. Rg1 {[%emt 0:00:32]} Bc8 {[%emt 0:00:49]} 24. Nf5 {[%emt 0:01:35]} a5 {[%emt 0:00:20]} 25. Nxe7+ {[%emt 0:01:51]} Qxe7 {[%emt 0:00:02]} 26. Nh4 {[%emt 0:00:02]} b4 {[%emt 0:00:25]} 27. Nf5 {[%emt 0:00:20]} Bxf5 {[%emt 0:00:29]} 28. gxf5 {[%emt 0:00:33]} bxc3 {[%emt 0:00:03]} 29. bxc3 {[%emt 0:00:25]} Rb2 {[%emt 0:00:02]} 30. Qc1 {[%emt 0:02:17]} Rab8 {[%emt 0:00:06]} 31. Bg5 {[%emt 0:00:23]} f6 {[%emt 0:00:02]} 32. Be3 {[%emt 0:00:01]} Qc7 {[%emt 0:01:35]} 33. fxg6 {[%emt 0:00:15]} hxg6 {[%emt 0:00:02]} 34. Rg2 {[%emt 0:00:52]} Kf7 {[%emt 0:01:01]} 35. f4 {[%emt 0:00:24]} exf4 {[%emt 0:02:48]} 36. Bxf4 {[%emt 0:00:27]} Nd3 {[%emt 0:00:01]} 37. Bxd3 {[%emt 0:00:01]} Rxg2+ {[%emt 0:00:02]} 38. Kxg2 cxd3 {[%emt 0:00:01]} 39. Be3 {[%emt 0:00:30]} Qe7 {[%emt 0:00:19]} 40. Bd4 {[%emt 0:00:14]} Qxe4+ {[%emt 0:00:02]} 41. Kg3 {[%emt 0:00:06]} Qxd5 {[%emt 0:00:48]} 42. Qf4 {[%emt 0:00:03]} Qg5+ {[%emt 0:00:46]} 43. Qxg5 {[%emt 0:00:01]} fxg5 {[%emt 0:00:01]} 44. Rd1 {[%emt 0:00:01]} Rb2 {[%emt 0:00:08]} 45. Rxd3 {[%emt 0:00:01]} Rxa2 46. Rf3+ {[%emt 0:00:02]} Ke7 {[%emt 0:00:27]} 47. Bf6+ {[%emt 0:00:06]} Ke6 {[%emt 0:00:10]} 48. Bxg5 {[%emt 0:00:02]} Nd7 {[%emt 0:00:01]} 49. h4 {[%emt 0:01:04]} a4 {[%emt 0:00:07]} 50. c4 {[%emt 0:00:04]} Rc2 {[%emt 0:00:04]} 51. Re3+ {[%emt 0:00:09]} Ne5 {[%emt 0:00:04]} 52. Bf4 {[%emt 0:00:10]} Rxc4 {[%emt 0:00:03]} 53. Bxe5 {[%emt 0:00:01]} dxe5 {[%emt 0:00:01]} 54. Kh3 {[%emt 0:00:11]} Rb4 {[%emt 0:00:05]} 55. Kg2 {[%emt 0:00:01]} Rxh4 {[%emt 0:00:14]} 0-1

[Event "29th Czech Open-Rapid 2018"]
[Site "Pardubice"]
[Date "2018.07.19"]
[Round "5"]
[White "Kukelko, Alexey"]
[Black "Zhuravlev, Stepan"]
[Result "0-1"]
[ECO "C47"]
[WhiteElo "2109"]
[BlackElo "2206"]
[Annotator "NA"]
[PlyCount "96"]
[EventDate "2018.07.18"]
[EventType "swiss"]
[EventCountry "CZE"]
[SourceTitle "playchess.com"]
[Source "ChessBase"]
[SourceQuality "1"]
[TimeControl "900+10"]

1. e4 {[%emt 0:00:00]} e5 {[%emt 0:00:00]} 2. Nf3 {[%emt 0:00:00]} Nc6 {[%emt 0:00:00]} 3. Nc3 {[%emt 0:00:00]} Nf6 {[%emt 0:00:00]} 4. Be2 {[%emt 0:00:00]} g6 {[%emt 0:01:39]} 5. d4 {[%emt 0:00:00]} exd4 {[%emt 0:00:27]} 6. Nxd4 {[%emt 0:00:00]} d6 {[%emt 0:00:43]} 7. O-O {[%emt 0:00:39]} Nxd4 {[%emt 0:00:38]} 8. Qxd4 {[%emt 0:00:01]} Bg7 {[%emt 0:00:01]} 9. Bg5 {[%emt 0:01:24]} h6 {[%emt 0:00:24]} 10. Be3 {[%emt 0:00:15]} O-O {[%emt 0:00:20]} 11. Qd2 {[%emt 0:00:02]} Kh7 {[%emt 0:00:09]} 12. f4 {[%emt 0:02:17]} Re8 {[%emt 0:00:21]} 13. e5 {[%emt 0:01:27]} Ng4 {[%emt 0:01:45]} 14. Bxg4 {[%emt 0:00:33]} Bxg4 {[%emt 0:00:02]} 15. h3 {[%emt 0:01:38]} Be6 {[%emt 0:00:15]} 16. exd6 {[%emt 0:00:17]} Qxd6 {[%emt 0:00:15]} 17. Qxd6 {[%emt 0:02:05]} cxd6 {[%emt 0:00:04]} 18. Kf2 {[%emt 0:02:17]} Rac8 {[%emt 0:00:43]} 19. Bd2 {[%emt 0:00:01]} d5 {[%emt 0:02:11]} 20. Rac1 {[%emt 0:02:42]} d4 {[%emt 0:02:10]} 21. Nb5 {[%emt 0:00:01]} Bc4 {[%emt 0:01:19]} 22. Nd6 {[%emt 0:00:31]} Re2+ {[%emt 0:01:45]} 23. Kg3 {[%emt 0:00:00]} Rxd2 {[%emt 0:00:36]} 24. Nxc8 {[%emt 0:00:02]} Bxf1 {[%emt 0:00:06]} 25. Rxf1 {[%emt 0:00:00]} Rxc2 {[%emt 0:00:02]} 26. Nxa7 {[%emt 0:00:01]} Rxb2 {[%emt 0:00:02]} 27. Rf2 {[%emt 0:00:01]} Rb4 {[%emt 0:01:19]} 28. Kf3 {[%emt 0:00:32]} Kg8 {[%emt 0:00:25]} 29. Ke4 {[%emt 0:00:05]} Rb1 {[%emt 0:00:34]} 30. Rd2 {[%emt 0:00:56]} Re1+ {[%emt 0:00:18]} 31. Kd5 {[%emt 0:00:07]} Rf1 {[%emt 0:00:02]} 32. Nb5 {[%emt 0:01:09]} Rxf4 {[%emt 0:00:25]} 33. Nd6 {[%emt 0:00:00]} b6 {[%emt 0:00:30]} 34. Nc8 {[%emt 0:00:33]} Rf5+ {[%emt 0:00:31]} 35. Kd6 {[%emt 0:00:33]} Bf8+ {[%emt 0:00:23]} 36. Kc7 {[%emt 0:00:01]} Rc5+ {[%emt 0:00:15]} 37. Kb7 {[%emt 0:00:01]} b5 {[%emt 0:00:07]} 38. Rxd4 {[%emt 0:00:10]} Rc2 {[%emt 0:00:01]} 39. Rd8 {[%emt 0:00:00]} Kg7 {[%emt 0:00:22]} 40. g4 {[%emt 0:00:33]} Rxa2 {[%emt 0:00:02]} 41. Nb6 {[%emt 0:00:11]} b4 {[%emt 0:00:11]} 42. Nc4 {[%emt 0:00:34]} Rc2 {[%emt 0:00:10]} 43. Ne3 {[%emt 0:00:12]} Rc3 {[%emt 0:00:09]} 44. Nd1 {[%emt 0:00:02]} Rxh3 {[%emt 0:00:03]} 45. Kc6 {[%emt 0:00:05]} Rg3 {[%emt 0:00:11]} 46. Rd4 {[%emt 0:00:01]} b3 {[%emt 0:00:08]} 47. Kb5 {[%emt 0:00:02]} Rg2 {[%emt 0:00:05]} 48. Rd3 {[%emt 0:00:07]} Rxg4 {[%emt 0:00:10]} 0-1

[Event "29th Czech Open-Rapid 2018"]
[Site "Pardubice"]
[Date "2018.07.19"]
[Round "5"]
[White "Kolasa, Pjotrs"]
[Black "Ludvik, Tomas"]
[Result "1-0"]
[ECO "D45"]
[WhiteElo "2104"]
[BlackElo "1850"]
[Annotator "NA"]
[PlyCount "85"]
[EventDate "2018.07.18"]
[EventType "swiss"]
[EventCountry "CZE"]
[SourceTitle "playchess.com"]
[Source "ChessBase"]
[SourceQuality "1"]
[TimeControl "900+10"]

1. Nf3 {[%emt 0:00:00]} Nf6 {[%emt 0:00:00]} 2. c4 {[%emt 0:00:00]} e6 {[%emt 0:00:00]} 3. Nc3 {[%emt 0:00:00]} d5 {[%emt 0:00:00]} 4. d4 {[%emt 0:00:00]} c6 {[%emt 0:00:02]} 5. e3 Nbd7 6. Qc2 {[%emt 0:00:01]} Bd6 {[%emt 0:00:08]} 7. Bd2 {[%emt 0:00:02]} O-O {[%emt 0:00:10]} 8. O-O-O {[%emt 0:00:03]} dxc4 {[%emt 0:00:23]} 9. Bxc4 {[%emt 0:00:03]} b5 {[%emt 0:00:01]} 10. Bd3 {[%emt 0:00:01]} Bb7 {[%emt 0:00:10]} 11. e4 {[%emt 0:01:10]} b4 {[%emt 0:02:20]} 12. Na4 {[%emt 0:00:03]} c5 {[%emt 0:01:57]} 13. dxc5 {[%emt 0:01:01]} Rc8 {[%emt 0:00:29]} 14. Bxb4 {[%emt 0:00:36]} Nxc5 {[%emt 0:02:46]} 15. Nxc5 {[%emt 0:01:20]} Qb6 {[%emt 0:00:30]} 16. Bc3 {[%emt 0:00:01]} Bxc5 {[%emt 0:05:07]} 17. Kb1 {[%emt 0:00:02]} Bb4 {[%emt 0:01:04]} 18. Bd4 {[%emt 0:00:15]} Qa5 {[%emt 0:00:03]} 19. Qe2 {[%emt 0:00:16]} Nd7 {[%emt 0:00:54]} 20. a3 {[%emt 0:05:20]} Be7 {[%emt 0:01:12]} 21. Qd2 {[%emt 0:00:07]} Qa4 {[%emt 0:00:33]} 22. Bc2 {[%emt 0:00:29]} Rxc2 23. Qxc2 {[%emt 0:00:01]} Qxc2+ {[%emt 0:00:41]} 24. Kxc2 {[%emt 0:00:01]} Bxe4+ {[%emt 0:00:01]} 25. Kd2 {[%emt 0:00:06]} Nc5 {[%emt 0:00:22]} 26. Ke3 {[%emt 0:00:09]} f5 {[%emt 0:00:01]} 27. b4 {[%emt 0:01:06]} f4+ {[%emt 0:00:18]} 28. Ke2 {[%emt 0:00:02]} Nb3 {[%emt 0:00:03]} 29. Bb2 {[%emt 0:00:21]} Rc8 {[%emt 0:00:16]} 30. Nd4 {[%emt 0:00:18]} Nxd4+ {[%emt 0:00:13]} 31. Bxd4 {[%emt 0:00:04]} Rc2+ {[%emt 0:00:11]} 32. Rd2 {[%emt 0:00:48]} f3+ {[%emt 0:00:01]} 33. gxf3 {[%emt 0:00:01]} Bxf3+ {[%emt 0:00:00]} 34. Kxf3 {[%emt 0:00:01]} Rxd2 {[%emt 0:00:01]} 35. Bxa7 {[%emt 0:00:26]} Rd3+ {[%emt 0:00:02]} 36. Be3 {[%emt 0:00:02]} Rxa3 {[%emt 0:00:16]} 37. Rb1 {[%emt 0:00:01]} Ra4 {[%emt 0:00:40]} 38. b5 {[%emt 0:00:07]} Rb4 {[%emt 0:00:07]} 39. Rxb4 {[%emt 0:00:02]} Bxb4 {[%emt 0:00:00]} 40. Ke4 {[%emt 0:00:02]} Kf7 {[%emt 0:00:17]} 41. b6 {[%emt 0:00:44]} Bd6 {[%emt 0:00:17]} 42. Bf4 {[%emt 0:00:03]} Ke7 {[%emt 0:00:06]} 43. b7 {[%emt 0:00:04]} 1-0

[Event "29th Czech Open-Rapid 2018"]
[Site "Pardubice"]
[Date "2018.07.19"]
[Round "5"]
[White "Ruzicka, Josef"]
[Black "Balazec, Ludovit"]
[Result "1-0"]
[ECO "B23"]
[WhiteElo "2089"]
[BlackElo "1945"]
[Annotator "NA"]
[PlyCount "73"]
[EventDate "2018.07.18"]
[EventType "swiss"]
[EventCountry "CZE"]
[SourceTitle "playchess.com"]
[Source "ChessBase"]
[SourceQuality "1"]
[TimeControl "900+10"]

1. e4 {[%emt 0:00:00]} c5 {[%emt 0:00:00]} 2. Nc3 {[%emt 0:00:00]} a6 {[%emt 0:00:00]} 3. a4 {[%emt 0:00:08]} d6 {[%emt 0:00:03]} 4. f4 {[%emt 0:00:28]} Nf6 {[%emt 0:00:19]} 5. Nf3 {[%emt 0:00:20]} Nc6 {[%emt 0:00:10]} 6. Bc4 {[%emt 0:02:06]} Bg4 {[%emt 0:00:30]} 7. h3 {[%emt 0:00:55]} Bxf3 {[%emt 0:00:05]} 8. Qxf3 {[%emt 0:00:02]} Nd4 {[%emt 0:00:03]} 9. Qd1 {[%emt 0:00:05]} e6 {[%emt 0:00:56]} 10. O-O {[%emt 0:02:33]} Be7 {[%emt 0:00:20]} 11. Ba2 {[%emt 0:01:01]} b5 {[%emt 0:00:44]} 12. d3 {[%emt 0:00:20]} b4 {[%emt 0:00:35]} 13. Ne2 {[%emt 0:00:12]} Nc6 {[%emt 0:00:23]} 14. f5 {[%emt 0:00:24]} exf5 {[%emt 0:00:37]} 15. Rxf5 {[%emt 0:00:11]} O-O {[%emt 0:00:49]} 16. Qf1 {[%emt 0:02:04]} Ne5 {[%emt 0:00:52]} 17. Be3 {[%emt 0:02:08]} Rc8 {[%emt 0:00:14]} 18. Ng3 {[%emt 0:00:01]} Ng6 {[%emt 0:01:24]} 19. Re1 {[%emt 0:00:49]} Nh4 {[%emt 0:00:30]} 20. Rf4 {[%emt 0:00:18]} Ng6 {[%emt 0:00:02]} 21. Rf2 {[%emt 0:00:04]} d5 {[%emt 0:00:51]} 22. exd5 {[%emt 0:00:23]} Nxd5 {[%emt 0:00:05]} 23. Nf5 {[%emt 0:00:42]} Bf6 24. Bc1 {[%emt 0:00:15]} Rc7 {[%emt 0:03:57]} 25. Kh1 {[%emt 0:00:51]} Nh4 {[%emt 0:01:30]} 26. Ree2 {[%emt 0:00:34]} Nb6 27. Bb3 c4 {[%emt 0:00:41]} 28. dxc4 {[%emt 0:00:27]} Nxc4 {[%emt 0:00:06]} 29. Nxh4 {[%emt 0:00:50]} Bxh4 {[%emt 0:00:02]} 30. Rf4 {[%emt 0:00:03]} Nb6 {[%emt 0:01:22]} 31. Rxb4 {[%emt 0:00:10]} Rd7 {[%emt 0:01:12]} 32. c3 {[%emt 0:00:28]} Nd5 {[%emt 0:00:43]} 33. Rg4 {[%emt 0:00:25]} h5 {[%emt 0:00:32]} 34. Rge4 {[%emt 0:00:08]} Bf6 {[%emt 0:00:30]} 35. Rf2 {[%emt 0:00:14]} Qb6 {[%emt 0:00:11]} 36. Bc4 {[%emt 0:00:17]} Rc8 {[%emt 0:00:15]} 37. Bxa6 1-0

[Event "29th Czech Open-Rapid 2018"]
[Site "Pardubice"]
[Date "2018.07.19"]
[Round "5"]
[White "Chekletsov, Egor"]
[Black "Frolov, Artur"]
[Result "*"]
[ECO "A56"]
[WhiteElo "2082"]
[BlackElo "2327"]
[Annotator "NA"]
[PlyCount "98"]
[EventDate "2018.07.18"]
[EventType "swiss"]
[EventCountry "CZE"]
[SourceTitle "playchess.com"]
[Source "ChessBase"]
[SourceQuality "1"]
[TimeControl "900+10"]

1. d4 {[%emt 0:00:00]} Nf6 {[%emt 0:00:00]} 2. c4 {[%emt 0:00:00]} c5 {[%emt 0:00:00]} 3. Nf3 {[%emt 0:00:00]} cxd4 {[%emt 0:00:14]} 4. Nxd4 {[%emt 0:00:01]} Nc6 {[%emt 0:00:21]} 5. Nc3 {[%emt 0:00:49]} g6 {[%emt 0:00:09]} 6. e3 {[%emt 0:00:33]} Bg7 {[%emt 0:00:03]} 7. Be2 {[%emt 0:00:02]} O-O {[%emt 0:00:03]} 8. b3 {[%emt 0:00:04]} d5 {[%emt 0:00:05]} 9. Nxc6 {[%emt 0:00:32]} bxc6 {[%emt 0:00:02]} 10. Bb2 {[%emt 0:00:02]} Ne4 {[%emt 0:00:28]} 11. Qc2 {[%emt 0:01:57]} Bf5 {[%emt 0:01:43]} 12. Bd3 {[%emt 0:00:04]} Qa5 {[%emt 0:01:18]} 13. Rc1 {[%emt 0:00:02]} Rfd8 {[%emt 0:00:30]} 14. O-O {[%emt 0:01:06]} Nxc3 {[%emt 0:00:19]} 15. Bxc3 {[%emt 0:01:23]} Bxc3 {[%emt 0:00:13]} 16. Bxf5 {[%emt 0:00:13]} Bd2 {[%emt 0:00:28]} 17. Rcd1 {[%emt 0:00:07]} dxc4 {[%emt 0:00:01]} 18. Be4 {[%emt 0:00:27]} cxb3 {[%emt 0:00:11]} 19. axb3 {[%emt 0:00:06]} Rd6 {[%emt 0:00:04]} 20. Bd3 {[%emt 0:00:57]} Bc3 {[%emt 0:00:55]} 21. Bc4 {[%emt 0:00:02]} Rad8 {[%emt 0:00:15]} 22. Rxd6 {[%emt 0:00:36]} exd6 {[%emt 0:01:16]} 23. Rc1 {[%emt 0:00:09]} Bd2 {[%emt 0:00:16]} 24. Rd1 {[%emt 0:00:04]} Bb4 {[%emt 0:00:02]} 25. e4 {[%emt 0:00:28]} Qe5 {[%emt 0:00:43]} 26. Qd3 {[%emt 0:00:44]} Re8 {[%emt 0:00:51]} 27. Qf3 {[%emt 0:01:13]} Re7 {[%emt 0:00:06]} 28. g3 {[%emt 0:03:04]} Kg7 {[%emt 0:00:34]} 29. Bd3 {[%emt 0:00:02]} Re6 {[%emt 0:00:01]} 30. Qe2 {[%emt 0:00:14]} f5 {[%emt 0:01:00]} 31. Qa2 {[%emt 0:00:48]} fxe4 {[%emt 0:00:25]} 32. Qxa7+ {[%emt 0:00:13]} Re7 {[%emt 0:00:01]} 33. Qb8 {[%emt 0:00:01]} Bc5 {[%emt 0:00:23]} 34. Bc4 {[%emt 0:00:26]} d5 {[%emt 0:00:22]} 35. Qxe5+ {[%emt 0:00:05]} Rxe5 {[%emt 0:00:01]} 36. Ba6 {[%emt 0:00:03]} Rf5 {[%emt 0:00:38]} 37. Rf1 {[%emt 0:00:05]} Rf7 {[%emt 0:00:09]} 38. Kg2 {[%emt 0:00:15]} Ra7 {[%emt 0:00:45]} 39. Bc8 {[%emt 0:00:31]} Bb6 {[%emt 0:01:36]} 40. g4 {[%emt 0:02:13]} Kf6 {[%emt 0:00:31]} 41. Rc1 {[%emt 0:00:03]} Rc7 {[%emt 0:00:03]} 42. Ba6 {[%emt 0:00:06]} Ke5 {[%emt 0:00:02]} 43. Kg3 {[%emt 0:00:14]} Rf7 {[%emt 0:00:26]} 44. Rxc6 {[%emt 0:00:23]} Rf3+ {[%emt 0:00:31]} 45. Kg2 {[%emt 0:00:20]} Rxf2+ {[%emt 0:00:03]} 46. Kh1 {[%emt 0:00:57]} Rf6 {[%emt 0:00:31]} 47. Rc8 {[%emt 0:00:37]} d4 {[%emt 0:00:41]} 48. Kg2 {[%emt 0:00:12]} d3 {[%emt 0:00:14]} 49. Re8+ {[%emt 0:00:09]} Re6 {[%emt 0:00:06]} *